[Event "16th EWICC 2015"]
[Site "Kutaisi"]
[Date "2015.06.02"]
[Round "5"]
[White "Gaponenko, Inna"]
[Black "Stefanova, Antoaneta"]
[Result "1/2-1/2"]
[ECO "C47"]
[WhiteElo "2391"]
[BlackElo "2512"]
[Annotator "Robot 11"]
[PlyCount "119"]
[EventDate "2015.??.??"]
[EventCountry "GEO"]
[TimeControl "900+10"]

1. e4 {[%emt 0:00:02]} e5 {[%emt 0:00:01]} 2. Nf3 {[%emt 0:00:01]} Nc6 {[%emt
0:00:01]} 3. Nc3 {[%emt 0:00:03]} Nf6 {[%emt 0:00:03]} 4. d4 {[%emt 0:00:01]}
exd4 {[%emt 0:00:03]} 5. Nxd4 {[%emt 0:00:02]} Bb4 {[%emt 0:00:04]} 6. Nxc6 {
[%emt 0:00:02]} bxc6 {[%emt 0:00:03]} 7. Bd3 {[%emt 0:00:01]} O-O {[%emt 0:00:
04]} 8. O-O {[%emt 0:00:03]} d5 {[%emt 0:00:02]} 9. exd5 {[%emt 0:00:08]} cxd5
{[%emt 0:00:04]} 10. h3 {[%emt 0:00:02]} c6 {[%emt 0:02:11]} 11. Qf3 {[%emt 0:
00:02]} Rb8 {[%emt 0:01:07]} 12. Bf4 {[%emt 0:01:57]} Bd6 {[%emt 0:00:25]} 13.
b3 {[%emt 0:00:04]} Rb4 {[%emt 0:02:41]} 14. Bxd6 {[%emt 0:02:27]} Qxd6 {[%emt
0:00:02]} 15. Ne2 {[%emt 0:00:01]} c5 {[%emt 0:01:09]} 16. c3 {[%emt 0:00:40]}
Rb7 {[%emt 0:00:27]} 17. Qf4 {[%emt 0:02:51]} Rd8 {[%emt 0:02:05]} 18. Qxd6 {
[%emt 0:01:54]} Rxd6 {[%emt 0:00:02]} 19. Rfe1 {[%emt 0:00:01]} a5 {[%emt 0:01:
33]} 20. Rad1 {[%emt 0:03:01]} Bd7 {[%emt 0:01:20]} 21. Ng3 {[%emt 0:00:58]} g6
{[%emt 0:00:28]} 22. c4 {[%emt 0:02:55]} a4 {[%emt 0:01:22]} 23. cxd5 {[%emt 0:
00:19]} axb3 {[%emt 0:00:22]} 24. axb3 {[%emt 0:00:01]} Rxd5 {[%emt 0:02:46]}
25. Ne4 {[%emt 0:00:49]} Nxe4 {[%emt 0:00:20]} 26. Bxe4 {[%emt 0:00:01]} Rxd1 {
[%emt 0:00:02]} 27. Rxd1 {[%emt 0:00:01]} Rc7 {[%emt 0:00:20]} 28. Bd5 {[%emt
0:00:02]} Be6 {[%emt 0:00:05]} 29. Bxe6 {[%emt 0:00:13]} fxe6 {[%emt 0:00:01]}
30. Rc1 {[%emt 0:00:01]} Rb7 {[%emt 0:00:04]} 31. Rxc5 {[%emt 0:00:02]} Rxb3 {
[%emt 0:00:02]} 32. Rc7 {[%emt 0:00:05]} Rb2 {[%emt 0:00:12]} 33. g4 {[%emt 0:
00:08]} g5 {[%emt 0:00:13]} 34. Kg2 {[%emt 0:00:01]} Rb3 {[%emt 0:00:09]} 35.
Re7 {[%emt 0:00:01]} Rb6 {[%emt 0:00:01]} 36. Kg3 {[%emt 0:00:52]} Rb3+ {[%emt
0:00:03]} 37. f3 {[%emt 0:00:02]} Re3 {[%emt 0:00:31]} 38. Kg2 {[%emt 0:00:42]}
h6 {[%emt 0:00:25]} 39. Kg3 {[%emt 0:00:03]} Kh8 {[%emt 0:00:03]} 40. Kg2 {
[%emt 0:00:15]} Kg8 {[%emt 0:00:03]} 41. Kg3 {[%emt 0:00:03]} Kh8 {[%emt 0:00:
01]} 42. Kf2 {[%emt 0:00:26]} Re5 {[%emt 0:00:01]} 43. h4 {[%emt 0:00:12]} gxh4
{[%emt 0:00:04]} 44. f4 {[%emt 0:00:01]} Re4 {[%emt 0:00:07]} 45. Kf3 {[%emt 0:
00:01]} Re1 {[%emt 0:00:50]} 46. Kf2 {[%emt 0:00:23]} h3 {[%emt 0:00:13]} 47.
Kg3 {[%emt 0:00:01]} Re3+ {[%emt 0:00:06]} 48. Kh2 {[%emt 0:00:01]} Rf3 {[%emt
0:00:09]} 49. Rxe6 {[%emt 0:00:06]} Rxf4 {[%emt 0:00:02]} 50. Rxh6+ {[%emt 0:
00:19]} Kg7 {[%emt 0:00:01]} 51. Rh4 {[%emt 0:00:17]} Kg6 {[%emt 0:00:10]} 52.
Kg3 {[%emt 0:00:07]} Ra4 {[%emt 0:00:06]} 53. Rxh3 {[%emt 0:00:02]} Ra3+ {
[%emt 0:00:10]} 54. Kh4 {[%emt 0:00:02]} Ra1 {[%emt 0:00:07]} 55. Rb3 {[%emt 0:
00:07]} Rh1+ {[%emt 0:00:03]} 56. Kg3 {[%emt 0:00:02]} Rg1+ {[%emt 0:00:03]}
57. Kf3 {[%emt 0:00:05]} Rf1+ {[%emt 0:00:04]} 58. Kg2 {[%emt 0:00:01]} Ra1 {
[%emt 0:00:02]} 59. Rb5 {[%emt 0:00:09]} Ra3 {[%emt 0:00:04]} 60. Rc5 {[%emt 0:
00:02]} 1/2-1/2

[Event "16th EWICC 2015"]
[Site "Kutaisi"]
[Date "2015.06.02"]
[Round "5"]
[White "Gaprindashvili, Nona"]
[Black "Mammadzada, Gunay"]
[Result "0-1"]
[ECO "D11"]
[WhiteElo "2302"]
[BlackElo "2336"]
[Annotator "Robot 11"]
[PlyCount "123"]
[EventDate "2015.??.??"]
[EventCountry "GEO"]
[TimeControl "900+10"]

1. d4 {[%emt 0:00:02]} d5 {[%emt 0:00:01]} 2. c4 {[%emt 0:00:01]} c6 {[%emt 0:
00:01]} 3. Nf3 {[%emt 0:00:02]} Nf6 {[%emt 0:00:01]} 4. Qb3 {[%emt 0:00:06]}
dxc4 {[%emt 0:00:03]} 5. Qxc4 {[%emt 0:00:01]} Bg4 {[%emt 0:00:10]} 6. Ne5 {
[%emt 0:00:14]} Be6 {[%emt 0:00:32]} 7. Qd3 {[%emt 0:00:04]} Nbd7 {[%emt 0:00:
03]} 8. Nxd7 {[%emt 0:00:32]} Qxd7 {[%emt 0:00:08]} 9. e4 {[%emt 0:00:14]} Rd8
{[%emt 0:01:18]} 10. Be3 {[%emt 0:00:10]} Ng4 {[%emt 0:00:29]} 11. Nc3 {[%emt
0:00:01]} Nxe3 {[%emt 0:00:37]} 12. fxe3 {[%emt 0:00:02]} g6 {[%emt 0:00:20]}
13. d5 {[%emt 0:00:30]} Bg7 {[%emt 0:00:22]} 14. O-O-O {[%emt 0:00:34]} cxd5 {
[%emt 0:02:56]} 15. exd5 {[%emt 0:00:03]} Bg4 {[%emt 0:02:18]} 16. Rd2 {[%emt
0:00:05]} Qc8 {[%emt 0:00:10]} 17. Rc2 {[%emt 0:00:34]} O-O {[%emt 0:00:16]}
18. Be2 {[%emt 0:01:52]} Bf5 {[%emt 0:01:00]} 19. e4 {[%emt 0:00:15]} Bd7 {
[%emt 0:00:01]} 20. Kb1 {[%emt 0:00:15]} Qb8 {[%emt 0:00:01]} 21. g4 {[%emt 0:
02:10]} Qe5 {[%emt 0:01:27]} 22. h4 {[%emt 0:00:15]} h6 {[%emt 0:00:30]} 23. h5
{[%emt 0:00:23]} g5 {[%emt 0:00:10]} 24. Bf3 {[%emt 0:01:51]} Rc8 {[%emt 0:00:
32]} 25. Rhc1 {[%emt 0:00:30]} Rc7 {[%emt 0:01:44]} 26. Nd1 {[%emt 0:02:32]}
Rxc2 {[%emt 0:01:30]} 27. Qxc2 {[%emt 0:04:16]} Rc8 {[%emt 0:00:48]} 28. Qd2 {
[%emt 0:00:02]} Rxc1+ {[%emt 0:00:26]} 29. Kxc1 {[%emt 0:00:11]} Qg3 {[%emt 0:
00:15]} 30. Qe2 {[%emt 0:00:07]} Qg1 {[%emt 0:00:26]} 31. Qe3 {[%emt 0:00:20]}
Qg3 {[%emt 0:00:29]} 32. Be2 {[%emt 0:00:08]} Qc7+ {[%emt 0:00:21]} 33. Kb1 {
[%emt 0:00:04]} Be5 {[%emt 0:00:00]} 34. Nc3 {[%emt 0:00:08]} b6 {[%emt 0:00:
11]} 35. Qd3 {[%emt 0:00:32]} Kg7 {[%emt 0:00:03]} 36. Nd1 {[%emt 0:00:23]} Qc5
{[%emt 0:00:10]} 37. Ne3 {[%emt 0:00:26]} Bf4 {[%emt 0:00:38]} 38. Nd1 {[%emt
0:00:31]} Qg1 {[%emt 0:00:15]} 39. Qc3+ {[%emt 0:00:10]} Kg8 {[%emt 0:00:06]}
40. Qf3 {[%emt 0:00:04]} Qd4 {[%emt 0:00:11]} 41. Nc3 {[%emt 0:00:08]} Qg1+ {
[%emt 0:00:22]} 42. Kc2 {[%emt 0:00:12]} b5 {[%emt 0:00:22]} 43. a3 {[%emt 0:
00:25]} a5 {[%emt 0:00:01]} 44. Kb3 {[%emt 0:00:01]} b4 {[%emt 0:00:17]} 45.
axb4 {[%emt 0:00:05]} axb4 {[%emt 0:00:07]} 46. Kxb4 {[%emt 0:00:58]} Qa1 {
[%emt 0:00:04]} 47. Kb3 {[%emt 0:00:03]} Bc1 {[%emt 0:00:06]} 48. Kc4 {[%emt 0:
00:04]} Qxb2 {[%emt 0:00:09]} 49. Bd1 {[%emt 0:00:13]} Bc8 {[%emt 0:00:15]} 50.
Ba4 {[%emt 0:00:04]} Bd2 {[%emt 0:00:12]} 51. Bb5 {[%emt 0:00:01]} Bxc3 {[%emt
0:00:12]} 52. Qxc3 {[%emt 0:00:02]} Qxc3+ {[%emt 0:00:03]} 53. Kxc3 {[%emt 0:
00:01]} Bxg4 {[%emt 0:00:01]} 54. e5 {[%emt 0:00:03]} Kf8 {[%emt 0:00:21]} 55.
Kd4 {[%emt 0:00:03]} Bxh5 {[%emt 0:00:06]} 56. d6 {[%emt 0:00:01]} exd6 {[%emt
0:00:01]} 57. exd6 {[%emt 0:00:01]} Bg4 {[%emt 0:00:02]} 58. Ke5 {[%emt 0:00:
01]} Be6 {[%emt 0:00:37]} 59. Kf6 {[%emt 0:00:04]} g4 {[%emt 0:00:03]} 60. Bc4
{[%emt 0:00:27]} Ke8 {[%emt 0:00:13]} 61. Bb5+ Kf8 62. Bc6 0-1

[Event "16th EWICC 2015"]
[Site "Kutaisi"]
[Date "2015.06.02"]
[Round "5"]
[White "Gognadze, Tsira"]
[Black "Donghvani, Nia"]
[Result "0-1"]
[ECO "B76"]
[WhiteElo "1144"]
[BlackElo "1444"]
[Annotator "Robot 11"]
[PlyCount "51"]
[EventDate "2015.??.??"]
[EventCountry "GEO"]
[TimeControl "900+10"]

1. e4 {[%emt 0:00:01]} c5 {[%emt 0:00:01]} 2. Nf3 {[%emt 0:00:01]} d6 {[%emt 0:
00:01]} 3. d4 {[%emt 0:00:01]} cxd4 {[%emt 0:00:02]} 4. Nxd4 {[%emt 0:00:01]}
Nf6 {[%emt 0:00:01]} 5. Nc3 {[%emt 0:00:01]} g6 {[%emt 0:00:01]} 6. f3 {[%emt
0:00:02]} Bg7 {[%emt 0:00:02]} 7. Be3 {[%emt 0:00:02]} O-O {[%emt 0:00:34]} 8.
Qd2 {[%emt 0:00:00]} Nc6 {[%emt 0:00:04]} 9. Nb3 {[%emt 0:00:02]} a6 {[%emt 0:
01:08]} 10. O-O-O {[%emt 0:00:02]} b5 {[%emt 0:00:45]} 11. a3 {[%emt 0:00:14]}
Bd7 {[%emt 0:00:49]} 12. g4 {[%emt 0:00:42]} Rc8 {[%emt 0:01:12]} 13. h4 {
[%emt 0:03:53]} Ne5 {[%emt 0:01:09]} 14. Bg2 {[%emt 0:02:18]} Nc4 {[%emt 0:00:
10]} 15. Qe2 {[%emt 0:00:44]} Nxe3 {[%emt 0:00:45]} 16. Qxe3 {[%emt 0:00:07]}
a5 {[%emt 0:00:32]} 17. h5 {[%emt 0:01:26]} b4 {[%emt 0:01:02]} 18. Nb1 {[%emt
0:00:41]} Qc7 {[%emt 0:01:43]} 19. Na1 {[%emt 0:02:07]} bxa3 {[%emt 0:03:36]}
20. Nxa3 {[%emt 0:00:06]} Ne8 {[%emt 0:00:53]} 21. Rd3 {[%emt 0:02:27]} a4 {
[%emt 0:00:25]} 22. Kd1 {[%emt 0:00:35]} Bxb2 {[%emt 0:00:15]} 23. Ke2 {[%emt
0:01:45]} Bg7 {[%emt 0:00:26]} 24. Kf2 {[%emt 0:00:58]} Rb8 {[%emt 0:00:35]}
25. Kg3 {[%emt 0:00:22]} d5+ {[%emt 0:00:05]} 26. f4 {[%emt 0:00:42]} 0-1

[Event "16th EWICC 2015"]
[Site "Kutaisi"]
[Date "2015.06.02"]
[Round "5"]
[White "Ibrahimova, Sabina"]
[Black "Gevorgyan, Maria"]
[Result "0-1"]
[ECO "B42"]
[WhiteElo "2272"]
[BlackElo "2190"]
[Annotator "Robot 11"]
[PlyCount "110"]
[EventDate "2015.??.??"]
[EventCountry "GEO"]
[TimeControl "900+10"]

1. e4 {[%emt 0:00:04]} c5 {[%emt 0:00:02]} 2. Nf3 {[%emt 0:00:04]} e6 {[%emt 0:
00:01]} 3. d4 {[%emt 0:00:02]} cxd4 {[%emt 0:00:01]} 4. Nxd4 a6 5. Bd3 {[%emt
0:00:14]} Nf6 {[%emt 0:00:02]} 6. O-O {[%emt 0:00:30]} e5 {[%emt 0:00:02]} 7.
Bg5 {[%emt 0:01:59]} h6 {[%emt 0:00:01]} 8. Bxf6 {[%emt 0:00:29]} Qxf6 {[%emt
0:00:01]} 9. Nf5 {[%emt 0:00:43]} g6 {[%emt 0:00:01]} 10. Ne3 {[%emt 0:00:02]}
Bc5 {[%emt 0:00:02]} 11. Nd5 {[%emt 0:00:16]} Qd8 {[%emt 0:00:01]} 12. Kh1 {
[%emt 0:00:43]} d6 {[%emt 0:02:10]} 13. f4 {[%emt 0:01:17]} Nc6 {[%emt 0:00:37]
} 14. fxe5 {[%emt 0:02:59]} Nxe5 {[%emt 0:01:20]} 15. Nf6+ {[%emt 0:00:31]} Kf8
{[%emt 0:00:01]} 16. Nc3 {[%emt 0:00:34]} h5 {[%emt 0:00:34]} 17. Ncd5 {[%emt
0:01:04]} Ng4 {[%emt 0:00:11]} 18. Qf3 {[%emt 0:04:46]} Be6 {[%emt 0:00:10]}
19. c3 {[%emt 0:00:31]} Kg7 {[%emt 0:01:29]} 20. b4 {[%emt 0:00:43]} Ba7 {
[%emt 0:00:02]} 21. g3 {[%emt 0:00:37]} Ne5 {[%emt 0:03:31]} 22. Qe2 {[%emt 0:
00:11]} Bg4 {[%emt 0:00:15]} 23. Qd2 {[%emt 0:00:16]} h4 {[%emt 0:02:03]} 24.
Nxg4 {[%emt 0:00:01]} Nxg4 {[%emt 0:00:17]} 25. Qf4 {[%emt 0:00:09]} Ne5 {
[%emt 0:00:15]} 26. Be2 {[%emt 0:00:17]} g5 {[%emt 0:01:49]} 27. Qf5 {[%emt 0:
00:01]} hxg3 {[%emt 0:00:01]} 28. h3 {[%emt 0:00:00]} Rh6 {[%emt 0:00:46]} 29.
Kg2 {[%emt 0:00:08]} Bf2 {[%emt 0:00:07]} 30. c4 {[%emt 0:00:24]} Ng6 {[%emt 0:
00:33]} 31. Qg4 {[%emt 0:00:19]} Nh4+ {[%emt 0:00:05]} 32. Kh1 {[%emt 0:00:04]}
g2+ {[%emt 0:00:12]} 33. Kh2 {[%emt 0:00:01]} gxf1=Q {[%emt 0:00:11]} 34. Rxf1
{[%emt 0:00:02]} Bd4 {[%emt 0:00:01]} 35. Kh1 {[%emt 0:00:30]} Rc8 {[%emt 0:00:
48]} 36. c5 {[%emt 0:00:09]} dxc5 {[%emt 0:00:04]} 37. Bc4 {[%emt 0:00:07]} f6
{[%emt 0:02:20]} 38. bxc5 {[%emt 0:00:19]} Rxc5 {[%emt 0:00:02]} 39. Bb3 {
[%emt 0:00:05]} Ng6 {[%emt 0:00:04]} 40. Rd1 {[%emt 0:00:10]} Rh4 {[%emt 0:00:
16]} 41. Qg2 {[%emt 0:00:08]} Be5 {[%emt 0:00:02]} 42. Ne3 {[%emt 0:00:01]} Qc8
{[%emt 0:00:20]} 43. Nf5+ Kh7 {[%emt 0:00:01]} 44. Nxh4 {[%emt 0:00:28]} Nxh4 {
[%emt 0:00:00]} 45. Qg4 {[%emt 0:00:14]} Qxg4 {[%emt 0:00:21]} 46. hxg4 {[%emt
0:00:01]} Rc7 {[%emt 0:00:01]} 47. Kg1 {[%emt 0:00:09]} Nf3+ {[%emt 0:00:03]}
48. Kf2 {[%emt 0:00:01]} Nd4 {[%emt 0:00:04]} 49. Bd5 {[%emt 0:00:21]} Rc2+ {
[%emt 0:00:03]} 50. Ke3 {[%emt 0:00:01]} b5 {[%emt 0:00:19]} 51. Rh1+ {[%emt 0:
00:10]} Kg7 {[%emt 0:00:02]} 52. Rd1 {[%emt 0:00:09]} Re2+ {[%emt 0:00:09]} 53.
Kd3 {[%emt 0:00:03]} Rg2 {[%emt 0:00:04]} 54. Rc1 {[%emt 0:00:04]} Rg3+ {[%emt
0:00:05]} 55. Kd2 {[%emt 0:00:04]} Bf4+ {[%emt 0:00:01]} 0-1

[Event "16th EWICC 2015"]
[Site "Kutaisi"]
[Date "2015.06.02"]
[Round "5"]
[White "Jalaghonia, Nino"]
[Black "Khmiadashvili, Tamar"]
[Result "0-1"]
[ECO "A20"]
[WhiteElo "1865"]
[BlackElo "2043"]
[Annotator "Robot 11"]
[PlyCount "110"]
[EventDate "2015.??.??"]
[EventCountry "GEO"]
[TimeControl "900+10"]

1. c4 {[%emt 0:00:03]} e5 {[%emt 0:00:07]} 2. g3 {[%emt 0:00:01]} Nc6 {[%emt 0:
00:08]} 3. Bg2 {[%emt 0:00:01]} f5 {[%emt 0:00:13]} 4. Nc3 {[%emt 0:00:04]} Nf6
{[%emt 0:00:02]} 5. d3 {[%emt 0:00:17]} Be7 {[%emt 0:00:11]} 6. e3 {[%emt 0:00:
28]} O-O {[%emt 0:00:05]} 7. Nge2 {[%emt 0:00:02]} d6 {[%emt 0:00:15]} 8. O-O {
[%emt 0:00:06]} Kh8 {[%emt 0:00:09]} 9. Nd5 {[%emt 0:00:05]} Nxd5 {[%emt 0:00:
05]} 10. cxd5 {[%emt 0:00:02]} Nb8 {[%emt 0:00:04]} 11. b4 {[%emt 0:01:55]} Bf6
{[%emt 0:00:47]} 12. Rb1 {[%emt 0:00:32]} c6 {[%emt 0:00:38]} 13. e4 {[%emt 0:
01:16]} cxd5 {[%emt 0:00:30]} 14. exd5 {[%emt 0:00:01]} f4 {[%emt 0:01:09]} 15.
gxf4 {[%emt 0:00:33]} Bg4 {[%emt 0:00:02]} 16. f3 {[%emt 0:01:01]} Bh5 {[%emt
0:00:39]} 17. fxe5 {[%emt 0:00:07]} Bxe5 {[%emt 0:00:05]} 18. d4 {[%emt 0:00:
27]} Bf6 {[%emt 0:00:19]} 19. Nf4 {[%emt 0:00:55]} Bf7 {[%emt 0:00:02]} 20. Ne6
{[%emt 0:02:27]} Bxe6 {[%emt 0:00:02]} 21. dxe6 {[%emt 0:00:01]} Nc6 {[%emt 0:
00:11]} 22. d5 {[%emt 0:00:58]} Qb6+ {[%emt 0:00:24]} 23. Kh1 {[%emt 0:00:04]}
Ne7 {[%emt 0:00:11]} 24. Qd3 {[%emt 0:00:51]} Qd4 {[%emt 0:00:44]} 25. Qxd4 {
[%emt 0:01:19]} Bxd4 {[%emt 0:00:02]} 26. f4 {[%emt 0:00:17]} Rac8 {[%emt 0:00:
27]} 27. Be4 {[%emt 0:01:56]} g6 {[%emt 0:00:13]} 28. Rd1 {[%emt 0:00:32]} Bg7
{[%emt 0:01:53]} 29. Be3 {[%emt 0:00:34]} Bh6 {[%emt 0:00:30]} 30. Rbc1 {[%emt
0:01:11]} Bxf4 {[%emt 0:02:03]} 31. Rxc8 {[%emt 0:01:12]} Nxc8 {[%emt 0:00:01]}
32. Bd4+ {[%emt 0:00:03]} Kg8 {[%emt 0:00:28]} 33. h4 {[%emt 0:00:10]} Ne7 {
[%emt 0:00:40]} 34. h5 {[%emt 0:00:41]} g5 {[%emt 0:01:32]} 35. h6 {[%emt 0:00:
14]} b6 {[%emt 0:00:30]} 36. Bg7 {[%emt 0:00:12]} Rc8 {[%emt 0:00:16]} 37. Bf6
{[%emt 0:00:11]} Rc7 {[%emt 0:00:38]} 38. Rg1 {[%emt 0:00:16]} Kf8 {[%emt 0:01:
36]} 39. Bxg5 {[%emt 0:00:06]} Bxg5 40. Rxg5 Rc4 {[%emt 0:01:00]} 41. Bxh7 Rh4+
42. Kg2 Rxh6 43. Be4 {[%emt 0:00:18]} Rh4 44. Kf3 Rh2 45. Rg2 Rh3+ {[%emt 0:00:
20]} 46. Kf4 Rh5 47. Rg5 Rh2 48. Rg2 Rh5 49. Rd2 Kg7 50. b5 {[%emt 0:01:20]}
Kf6 51. Bf3 Rh4+ {[%emt 0:01:02]} 52. Bg4 Rh1 53. Rd3 Ng6+ 54. Kg3 {[%emt 0:00:
52]} Rg1+ 55. Kh3 Nf4+ {[%emt 0:00:00]} 0-1

[Event "16th EWICC 2015"]
[Site "Kutaisi"]
[Date "2015.06.02"]
[Round "5"]
[White "Khurtsidze, Nino"]
[Black "Esadze, Tamar"]
[Result "1-0"]
[ECO "A17"]
[WhiteElo "2451"]
[BlackElo "1697"]
[Annotator "Robot 11"]
[PlyCount "89"]
[EventDate "2015.??.??"]
[EventCountry "GEO"]
[TimeControl "900+10"]

1. Nf3 {[%emt 0:00:02]} Nf6 {[%emt 0:00:01]} 2. c4 {[%emt 0:00:04]} e6 {[%emt
0:00:03]} 3. Nc3 {[%emt 0:00:03]} b6 {[%emt 0:00:07]} 4. e4 {[%emt 0:00:04]} d6
{[%emt 0:00:06]} 5. d4 {[%emt 0:00:02]} Bb7 {[%emt 0:00:09]} 6. Bd3 {[%emt 0:
00:01]} Be7 {[%emt 0:00:05]} 7. O-O {[%emt 0:00:03]} O-O {[%emt 0:00:02]} 8.
Qc2 {[%emt 0:00:17]} h6 {[%emt 0:00:09]} 9. Re1 {[%emt 0:00:04]} c5 {[%emt 0:
00:14]} 10. d5 {[%emt 0:00:17]} e5 {[%emt 0:00:11]} 11. a3 {[%emt 0:00:11]}
Nbd7 {[%emt 0:00:38]} 12. b4 {[%emt 0:00:02]} Rc8 {[%emt 0:00:12]} 13. Be3 {
[%emt 0:00:48]} Ng4 {[%emt 0:00:31]} 14. Bd2 {[%emt 0:00:06]} Bh4 {[%emt 0:01:
04]} 15. g3 {[%emt 0:00:38]} Be7 {[%emt 0:00:13]} 16. h3 {[%emt 0:00:10]} Ngf6
{[%emt 0:00:04]} 17. Nh4 {[%emt 0:00:08]} Nh5 {[%emt 0:02:15]} 18. Nf5 {[%emt
0:00:26]} Re8 {[%emt 0:02:43]} 19. Nb5 {[%emt 0:00:22]} Nf8 {[%emt 0:01:15]}
20. Nxa7 {[%emt 0:00:11]} Ra8 {[%emt 0:00:25]} 21. Nb5 {[%emt 0:00:14]} Bc8 {
[%emt 0:00:21]} 22. bxc5 {[%emt 0:01:03]} bxc5 {[%emt 0:00:29]} 23. a4 {[%emt
0:00:02]} Nh7 {[%emt 0:00:51]} 24. Be2 {[%emt 0:02:15]} N5f6 {[%emt 0:00:41]}
25. h4 {[%emt 0:00:16]} Qd7 {[%emt 0:00:46]} 26. Bf3 {[%emt 0:01:33]} Ba6 {
[%emt 0:00:28]} 27. Bg2 {[%emt 0:00:12]} Bf8 {[%emt 0:00:48]} 28. Bh3 {[%emt 0:
00:18]} Qd8 {[%emt 0:00:31]} 29. Rf1 {[%emt 0:02:24]} Kh8 {[%emt 0:00:31]} 30.
Rae1 {[%emt 0:00:06]} Be7 {[%emt 0:00:35]} 31. f4 {[%emt 0:00:20]} Nh5 {[%emt
0:00:36]} 32. fxe5 {[%emt 0:00:23]} dxe5 {[%emt 0:00:13]} 33. Qd1 {[%emt 0:01:
47]} N5f6 {[%emt 0:00:20]} 34. Qf3 {[%emt 0:00:53]} Bxb5 {[%emt 0:00:09]} 35.
axb5 {[%emt 0:00:02]} Ra2 {[%emt 0:00:14]} 36. Qe3 {[%emt 0:00:24]} Nxe4 {
[%emt 0:00:29]} 37. Qxe4 {[%emt 0:00:05]} Rxd2 {[%emt 0:00:04]} 38. Qxe5 {
[%emt 0:00:14]} f6 {[%emt 0:00:28]} 39. Qe3 {[%emt 0:00:16]} Ra2 {[%emt 0:00:
10]} 40. Nxe7 {[%emt 0:00:19]} Ra7 {[%emt 0:00:54]} 41. Ng6+ {[%emt 0:00:04]}
Kg8 {[%emt 0:00:05]} 42. Qxe8+ {[%emt 0:00:18]} Qxe8 {[%emt 0:00:02]} 43. Rxe8+
{[%emt 0:00:01]} Kf7 {[%emt 0:00:02]} 44. Re6 {[%emt 0:00:13]} Kxg6 {[%emt 0:
00:04]} 45. Bf5+ {[%emt 0:00:02]} 1-0

[Event "16th EWICC 2015"]
[Site "Kutaisi"]
[Date "2015.06.02"]
[Round "5"]
[White "Kostava, Elene"]
[Black "Giorgadze, Elene"]
[Result "1-0"]
[ECO "D45"]
[WhiteElo "1691"]
[BlackElo "1185"]
[Annotator "Robot 11"]
[PlyCount "49"]
[EventDate "2015.??.??"]
[EventCountry "GEO"]
[TimeControl "900+10"]

1. d4 {[%emt 0:00:02]} d5 {[%emt 0:06:48]} 2. c4 {[%emt 0:00:02]} c6 {[%emt 0:
00:05]} 3. Nf3 {[%emt 0:00:03]} Nf6 {[%emt 0:00:05]} 4. Nc3 {[%emt 0:00:02]} e6
{[%emt 0:00:21]} 5. e3 {[%emt 0:00:23]} Bb4 {[%emt 0:00:09]} 6. Bd2 {[%emt 0:
00:02]} O-O {[%emt 0:00:06]} 7. Bd3 {[%emt 0:00:28]} Nbd7 {[%emt 0:00:25]} 8.
O-O {[%emt 0:00:44]} Qc7 {[%emt 0:00:06]} 9. cxd5 {[%emt 0:00:53]} cxd5 {[%emt
0:00:26]} 10. Nb5 {[%emt 0:00:08]} Qa5 {[%emt 0:00:22]} 11. Bxb4 {[%emt 0:00:
50]} Qxb4 {[%emt 0:00:06]} 12. Qc2 {[%emt 0:00:05]} Nb6 {[%emt 0:00:20]} 13. a3
{[%emt 0:00:35]} Qe7 {[%emt 0:00:10]} 14. Qb3 {[%emt 0:00:26]} Bd7 {[%emt 0:00:
34]} 15. Nxa7 {[%emt 0:00:30]} Rxa7 {[%emt 0:01:18]} 16. Qxb6 {[%emt 0:00:03]}
Rfa8 {[%emt 0:00:36]} 17. Rac1 {[%emt 0:00:06]} Bc6 {[%emt 0:00:38]} 18. Ne5 {
[%emt 0:00:13]} Qd6 {[%emt 0:01:04]} 19. Nxc6 {[%emt 0:00:42]} Ng4 {[%emt 0:00:
38]} 20. g3 {[%emt 0:00:02]} e5 {[%emt 0:00:21]} 21. Ne7+ {[%emt 0:01:31]} Kf8
{[%emt 0:00:05]} 22. Qxd6 {[%emt 0:00:05]} exd4 {[%emt 0:00:19]} 23. Rc8+ {
[%emt 0:00:14]} Rxc8 {[%emt 0:00:10]} 24. Nxc8+ {[%emt 0:00:03]} Ke8 {[%emt 0:
00:05]} 25. Qe7# {[%emt 0:00:03]} 1-0

[Event "16th EWICC 2015"]
[Site "Kutaisi"]
[Date "2015.06.02"]
[Round "5"]
[White "Lomineishvili, Maia"]
[Black "Guramishvili, Sopiko"]
[Result "0-1"]
[ECO "D72"]
[WhiteElo "2364"]
[BlackElo "2370"]
[Annotator "Robot 11"]
[PlyCount "84"]
[EventDate "2015.??.??"]
[EventCountry "GEO"]
[TimeControl "900+10"]

1. d4 {[%emt 0:00:02]} Nf6 {[%emt 0:00:02]} 2. c4 {[%emt 0:00:05]} g6 {[%emt 0:
00:02]} 3. g3 {[%emt 0:00:10]} Bg7 {[%emt 0:00:29]} 4. Bg2 {[%emt 0:00:02]} d5
{[%emt 0:00:24]} 5. cxd5 {[%emt 0:00:06]} Nxd5 {[%emt 0:00:02]} 6. e4 {[%emt 0:
00:12]} Nb6 {[%emt 0:00:09]} 7. Ne2 {[%emt 0:00:02]} Bg4 {[%emt 0:00:47]} 8. f3
{[%emt 0:00:11]} Bd7 {[%emt 0:00:05]} 9. Nbc3 {[%emt 0:00:32]} O-O {[%emt 0:00:
16]} 10. O-O {[%emt 0:00:07]} c6 {[%emt 0:00:30]} 11. Bf4 {[%emt 0:00:49]} Na6
{[%emt 0:01:14]} 12. b3 {[%emt 0:00:38]} Qc8 {[%emt 0:02:32]} 13. Qd2 {[%emt 0:
00:12]} Rd8 {[%emt 0:00:02]} 14. Bg5 {[%emt 0:00:27]} f6 {[%emt 0:01:47]} 15.
Bh6 {[%emt 0:00:02]} Be6 {[%emt 0:01:48]} 16. Bxg7 {[%emt 0:00:08]} Kxg7 {
[%emt 0:00:01]} 17. Rac1 {[%emt 0:00:15]} Bf7 {[%emt 0:00:13]} 18. Rfd1 {[%emt
0:00:30]} Nc7 {[%emt 0:00:50]} 19. Qe3 {[%emt 0:00:35]} Qd7 {[%emt 0:00:15]}
20. Nf4 {[%emt 0:00:32]} Qe8 {[%emt 0:00:20]} 21. Nd3 {[%emt 0:01:44]} Ne6 {
[%emt 0:00:53]} 22. Ne2 {[%emt 0:00:33]} Qd7 {[%emt 0:00:40]} 23. Bh3 {[%emt 0:
00:15]} Qd6 {[%emt 0:00:26]} 24. Bxe6 {[%emt 0:02:15]} Qxe6 {[%emt 0:00:52]}
25. Nef4 {[%emt 0:01:58]} Qd6 {[%emt 0:01:40]} 26. Nc5 {[%emt 0:00:02]} Rab8 {
[%emt 0:00:16]} 27. e5 {[%emt 0:00:39]} fxe5 {[%emt 0:00:01]} 28. dxe5 {[%emt
0:00:01]} Qxd1+ {[%emt 0:00:03]} 29. Rxd1 {[%emt 0:00:00]} Rxd1+ {[%emt 0:00:
01]} 30. Kf2 {[%emt 0:00:20]} Nd5 {[%emt 0:00:32]} 31. Nfe6+ {[%emt 0:02:26]}
Bxe6 {[%emt 0:00:02]} 32. Nxe6+ {[%emt 0:00:01]} Kf7 {[%emt 0:00:00]} 33. Ng5+
{[%emt 0:00:03]} Kg8 {[%emt 0:00:04]} 34. Qxa7 {[%emt 0:00:09]} Rd8 {[%emt 0:
00:17]} 35. Ne6 {[%emt 0:00:06]} Rd7 {[%emt 0:00:52]} 36. Qb8+ {[%emt 0:00:01]}
Kf7 {[%emt 0:00:02]} 37. Ng5+ {[%emt 0:00:19]} Kg7 {[%emt 0:00:01]} 38. Qe8 {
[%emt 0:00:07]} Nc7 {[%emt 0:00:46]} 39. Qf7+ {[%emt 0:00:03]} Kh6 {[%emt 0:00:
01]} 40. h4 {[%emt 0:01:24]} R7d2+ {[%emt 0:00:31]} 41. Ke3 {[%emt 0:00:04]}
Nd5+ {[%emt 0:00:09]} 42. Qxd5 {[%emt 0:01:18]} Rxd5 {[%emt 0:00:02]} 0-1